[Event "EYCC G10-ch 2024"]
[Site "Prague"]
[Date "2024.08.29"]
[Round "7.7"]
[White "Kocherha, Yelizavieta"]
[Black "Paunescu, Aida"]
[Result "0-1"]
[ECO "B12"]
[WhiteElo "1519"]
[BlackElo "1603"]
[Annotator "NA RC"]
[PlyCount "116"]
[EventDate "2024.08.19"]
[EventType "swiss"]
[EventCountry "CZE"]
[SourceTitle "playchess.com"]
[Source "ChessBase"]
[SourceQuality "1"]
[TimeControl "5400+30"]

1. e4 {[%emt 0:00:04]} c6 {[%emt 0:00:16]} 2. d4 {[%emt 0:00:16]} d5 {[%emt 0:00:33]} 3. e5 {[%emt 0:00:10]} Bf5 {[%emt 0:01:40]} 4. h4 {[%emt 0:00:22]} h6 {[%emt 0:06:21]} 5. g4 {[%emt 0:00:13]} Bg6 {[%emt 0:07:14]} 6. h5 {[%emt 0:00:46]} Bh7 {[%emt 0:00:46]} 7. e6 {[%emt 0:01:30]} fxe6 {[%emt 0:29:09]} 8. Bd3 {[%emt 0:00:23]} e5 {[%emt 0:06:30]} 9. Bxh7 {[%emt 0:00:24]} Rxh7 {[%emt 0:00:05]} 10. Qd3 {[%emt 0:00:35]} e4 {[%emt 0:00:13]} 11. Qe3 {[%emt 0:01:02]} e6 {[%emt 0:00:44]} 12. c4 {[%emt 0:01:31]} Bd6 13. Nh3 {[%emt 0:01:34]} Ne7 {[%emt 0:10:52]} 14. g5 {[%emt 0:01:19]} Nf5 15. Qd2 {[%emt 0:02:40]} Qc7 {[%emt 0:04:35]} 16. c5 {[%emt 0:00:58]} Be7 {[%emt 0:00:51]} 17. gxh6 {[%emt 0:00:55]} Rxh6 {[%emt 0:02:27]} 18. Qd1 {[%emt 0:06:45]} Rh8 {[%emt 0:00:42]} 19. Nf4 {[%emt 0:00:59]} Qd7 {[%emt 0:02:27]} 20. Ng6 {[%emt 0:00:52]} Rh7 {[%emt 0:02:29]} 21. Ne5 {[%emt 0:00:47]} Qc7 {[%emt 0:00:26]} 22. Qg4 {[%emt 0:01:26]} g5 {[%emt 0:07:02]} 23. Be3 {[%emt 0:08:06]} Nd7 {[%emt 0:05:05]} 24. Ng6 {[%emt 0:01:14]} Bf6 {[%emt 0:03:57]} 25. Qd1 {[%emt 0:04:04]} O-O-O {[%emt 0:02:53]} 26. a4 {[%emt 0:06:43]} Nxe3 {[%emt 0:01:02]} 27. fxe3 {[%emt 0:00:37]} Qg3+ {[%emt 0:00:15]} 28. Kd2 {[%emt 0:00:31]} Qf2+ {[%emt 0:00:54]} 29. Qe2 {[%emt 0:00:47]} Qxe2+ {[%emt 0:01:39]} 30. Kxe2 {[%emt 0:00:13]} Nf8 {[%emt 0:00:19]} 31. Nxf8 {[%emt 0:00:31]} Rxf8 {[%emt 0:00:05]} 32. Nc3 {[%emt 0:01:33]} Rfh8 {[%emt 0:00:23]} 33. Rhf1 {[%emt 0:00:52]} Be7 {[%emt 0:00:25]} 34. b4 {[%emt 0:01:31]} Rxh5 {[%emt 0:00:56]} 35. b5 {[%emt 0:01:49]} Rh2+ {[%emt 0:01:08]} 36. Rf2 {[%emt 0:01:05]} g4 {[%emt 0:01:08]} 37. Rg1 {[%emt 0:01:39]} g3 {[%emt 0:02:18]} 38. Rxg3 {[%emt 0:00:30]} Rxf2+ {[%emt 0:00:05]} 39. Kxf2 {[%emt 0:00:34]} Bh4 {[%emt 0:00:06]} 40. Kg2 {[%emt 0:00:41]} Bxg3 {[%emt 0:00:07]} 41. Kxg3 {[%emt 0:00:25]} Kd7 {[%emt 0:00:49]} 42. Kf2 {[%emt 0:02:26]} Rh2+ {[%emt 0:00:41]} 43. Ke1 {[%emt 0:01:22]} Rh1+ {[%emt 0:01:23]} 44. Kd2 {[%emt 0:00:32]} a6 {[%emt 0:00:16]} 45. b6 {[%emt 0:00:55]} Ke7 {[%emt 0:00:16]} 46. Nd1 {[%emt 0:01:57]} Rh2+ {[%emt 0:00:11]} 47. Ke1 {[%emt 0:00:55]} Kf6 {[%emt 0:01:03]} 48. Nf2 {[%emt 0:02:43]} Kf5 {[%emt 0:00:28]} 49. Kf1 {[%emt 0:01:02]} Rh8 {[%emt 0:00:30]} 50. Kg1 {[%emt 0:03:07]} e5 {[%emt 0:01:00]} 51. Kf1 {[%emt 0:01:08]} exd4 {[%emt 0:00:16]} 52. exd4 {[%emt 0:00:26]} Kf4 {[%emt 0:00:34]} 53. a5 {[%emt 0:01:23]} Kf3 {[%emt 0:00:24]} 54. Kg1 {[%emt 0:01:02]} Rg8+ {[%emt 0:00:48]} 55. Kf1 {[%emt 0:00:48]} e3 {[%emt 0:00:24]} 56. Nd3 {[%emt 0:00:40]} e2+ {[%emt 0:00:14]} 57. Ke1 {[%emt 0:01:17]} Ke3 {[%emt 0:00:40]} 58. Nf2 {[%emt 0:01:18]} Rg1# {[%emt 0:00:16]} 0-1

[Event "EYCC G10-ch 2024"]
[Site "Prague"]
[Date "2024.08.29"]
[Round "7.8"]
[White "Stoica, Melina-Theodora"]
[Black "Kiryttopoulou, Eleonora Kaisa"]
[Result "1-0"]
[ECO "A45"]
[WhiteElo "1576"]
[BlackElo "1525"]
[Annotator "NA RC"]
[PlyCount "111"]
[EventDate "2024.08.19"]
[EventType "swiss"]
[EventCountry "CZE"]
[SourceTitle "playchess.com"]
[Source "ChessBase"]
[SourceQuality "1"]
[TimeControl "5400+30"]

1. d4 {[%emt 0:00:00]} Nf6 {[%emt 0:00:02]} 2. Bf4 {[%emt 0:00:28]} b6 {[%emt 0:00:32]} 3. Nf3 {[%emt 0:01:40]} Bb7 {[%emt 0:01:27]} 4. e3 {[%emt 0:12:34]} g6 5. c4 d6 {[%emt 0:01:48]} 6. Nc3 {[%emt 0:00:47]} Bg7 {[%emt 0:00:35]} 7. Be2 {[%emt 0:03:57]} O-O {[%emt 0:00:38]} 8. O-O {[%emt 0:00:19]} Nbd7 {[%emt 0:00:42]} 9. Rc1 {[%emt 0:10:54]} Nh5 {[%emt 0:04:16]} 10. Bg5 {[%emt 0:12:31]} Nhf6 {[%emt 0:06:07]} 11. Qd2 {[%emt 0:11:04]} e5 {[%emt 0:02:09]} 12. d5 {[%emt 0:14:46]} Qe8 {[%emt 0:10:34]} 13. Rfd1 {[%emt 0:05:19]} e4 {[%emt 0:04:03]} 14. Nd4 {[%emt 0:00:48]} a6 {[%emt 0:02:24]} 15. h3 {[%emt 0:05:47]} Ne5 {[%emt 0:00:56]} 16. Bxf6 {[%emt 0:01:49]} Bxf6 {[%emt 0:00:12]} 17. Nxe4 {[%emt 0:00:25]} Bg7 {[%emt 0:00:57]} 18. Ng3 {[%emt 0:07:16]} h5 {[%emt 0:02:20]} 19. Nf3 {[%emt 0:04:18]} a5 {[%emt 0:02:37]} 20. a3 {[%emt 0:03:34]} Ba6 {[%emt 0:03:36]} 21. b3 {[%emt 0:01:07]} Nxf3+ {[%emt 0:02:00]} 22. Bxf3 {[%emt 0:00:12]} a4 {[%emt 0:01:31]} 23. b4 {[%emt 0:00:16]} Rc8 {[%emt 0:02:45]} 24. c5 {[%emt 0:00:52]} Qe5 {[%emt 0:01:50]} 25. Be2 {[%emt 0:01:08]} b5 {[%emt 0:01:43]} 26. cxd6 {[%emt 0:00:48]} cxd6 {[%emt 0:00:12]} 27. Rc6 {[%emt 0:00:31]} h4 {[%emt 0:02:16]} 28. Nf1 {[%emt 0:00:26]} Ra8 {[%emt 0:01:47]} 29. Rb6 {[%emt 0:00:37]} Rfb8 {[%emt 0:00:46]} 30. Rxb8+ {[%emt 0:00:15]} Rxb8 {[%emt 0:00:08]} 31. Rc1 {[%emt 0:00:21]} Bb7 {[%emt 0:10:38]} 32. Rd1 {[%emt 0:00:46]} Bc8 {[%emt 0:00:50]} 33. Rc1 {[%emt 0:00:06]} Qg5 {[%emt 0:01:03]} 34. Kh1 {[%emt 0:00:44]} Bb7 {[%emt 0:00:36]} 35. Bf3 {[%emt 0:00:43]} Be5 {[%emt 0:02:35]} 36. Rc2 {[%emt 0:00:41]} Bg7 {[%emt 0:02:35]} 37. e4 {[%emt 0:00:13]} Qxd2 {[%emt 0:00:27]} 38. Nxd2 {[%emt 0:00:19]} Rc8 {[%emt 0:01:20]} 39. Rxc8+ {[%emt 0:00:11]} Bxc8 {[%emt 0:00:03]} 40. Be2 {[%emt 0:00:13]} Bd7 {[%emt 0:00:21]} 41. Kg1 {[%emt 0:00:15]} Bc3 {[%emt 0:00:44]} 42. Nb1 {[%emt 0:00:06]} Be5 {[%emt 0:00:23]} 43. Kf1 {[%emt 0:00:09]} Kg7 {[%emt 0:00:07]} 44. Ke1 {[%emt 0:00:06]} Kf6 {[%emt 0:00:14]} 45. Kd2 {[%emt 0:00:20]} Be8 {[%emt 0:00:42]} 46. Nc3 {[%emt 0:00:08]} Bxc3+ {[%emt 0:00:06]} 47. Kxc3 {[%emt 0:00:05]} Ke5 {[%emt 0:00:19]} 48. Kd3 {[%emt 0:00:12]} Bd7 {[%emt 0:00:21]} 49. Ke3 {[%emt 0:00:11]} g5 {[%emt 0:00:09]} 50. Bh5 {[%emt 0:00:19]} f6 {[%emt 0:00:11]} 51. Bg4 {[%emt 0:00:42]} f5 {[%emt 0:01:45]} 52. Bxf5 {[%emt 0:00:44]} Bxf5 {[%emt 0:00:08]} 53. exf5 {[%emt 0:00:08]} Kxf5 {[%emt 0:00:09]} 54. Kf3 {[%emt 0:01:55]} Ke5 {[%emt 0:07:02]} 55. Kg4 {[%emt 0:00:16]} Kf6 {[%emt 0:00:46]} 56. f4 {[%emt 0:00:24]} 1-0

[Event "EYCC G10-ch 2024"]
[Site "Prague"]
[Date "2024.08.29"]
[Round "7.9"]
[White "Milojevic, Dunja"]
[Black "Isakhanyan, Nare"]
[Result "1-0"]
[ECO "D18"]
[WhiteElo "1568"]
[BlackElo "1512"]
[Annotator "NA RC"]
[PlyCount "159"]
[EventDate "2024.08.19"]
[EventType "swiss"]
[EventCountry "CZE"]
[SourceTitle "playchess.com"]
[Source "ChessBase"]
[SourceQuality "1"]
[TimeControl "5400+30"]

1. d4 {[%emt 0:00:02]} d5 {[%emt 0:00:03]} 2. c4 {[%emt 0:00:07]} c6 {[%emt 0:00:03]} 3. Nf3 {[%emt 0:00:12]} Nf6 {[%emt 0:00:04]} 4. Nc3 {[%emt 0:00:10]} dxc4 {[%emt 0:00:04]} 5. a4 {[%emt 0:00:06]} Bf5 {[%emt 0:00:11]} 6. e3 {[%emt 0:00:26]} e6 {[%emt 0:01:22]} 7. Bxc4 {[%emt 0:00:27]} Bb4 {[%emt 0:00:23]} 8. O-O {[%emt 0:04:06]} Nbd7 {[%emt 0:00:58]} 9. Bd2 {[%emt 0:06:18]} O-O {[%emt 0:04:05]} 10. Nh4 {[%emt 0:01:10]} Bg6 {[%emt 0:08:58]} 11. Nxg6 {[%emt 0:01:51]} hxg6 {[%emt 0:00:24]} 12. Qc2 {[%emt 0:00:36]} Nb6 {[%emt 0:04:10]} 13. Bb3 {[%emt 0:01:01]} a5 {[%emt 0:01:00]} 14. Rad1 {[%emt 0:01:29]} Rc8 {[%emt 0:02:49]} 15. e4 {[%emt 0:07:40]} Qe7 {[%emt 0:15:03]} 16. Bg5 {[%emt 0:08:17]} Qc7 {[%emt 0:04:42]} 17. Bxf6 {[%emt 0:03:41]} gxf6 {[%emt 0:00:09]} 18. f4 {[%emt 0:03:03]} Kg7 {[%emt 0:05:01]} 19. f5 {[%emt 0:10:10]} exf5 {[%emt 0:01:11]} 20. exf5 {[%emt 0:02:27]} Rh8 {[%emt 0:00:36]} 21. g3 {[%emt 0:01:22]} Bxc3 {[%emt 0:05:44]} 22. Qxc3 {[%emt 0:02:10]} Nd5 {[%emt 0:02:31]} 23. Qf3 {[%emt 0:01:02]} Qd6 {[%emt 0:00:31]} 24. fxg6 {[%emt 0:01:21]} fxg6 {[%emt 0:01:35]} 25. Rd2 {[%emt 0:02:58]} Rce8 {[%emt 0:04:43]} 26. Re2 {[%emt 0:00:40]} Qb4 {[%emt 0:07:47]} 27. Bxd5 {[%emt 0:07:42]} Qxd4+ {[%emt 0:01:41]} 28. Ref2 {[%emt 0:00:18]} cxd5 {[%emt 0:10:12]} 29. Rd1 {[%emt 0:04:49]} Qb6 {[%emt 0:07:38]} 30. Rxd5 {[%emt 0:02:15]} Qc6 {[%emt 0:01:11]} 31. Rfd2 {[%emt 0:02:30]} Re7 {[%emt 0:04:05]} 32. Qd3 {[%emt 0:04:14]} Qxa4 {[%emt 0:04:57]} 33. Qc3 {[%emt 0:02:15]} Qe4 {[%emt 0:02:10]} 34. Rf2 {[%emt 0:03:59]} Rf7 {[%emt 0:00:55]} 35. Rxa5 {[%emt 0:06:40]} Rd8 {[%emt 0:00:25]} 36. Ra1 {[%emt 0:01:39]} Rdd7 {[%emt 0:00:36]} 37. Re1 {[%emt 0:00:33]} Qd5 {[%emt 0:00:20]} 38. Rc1 {[%emt 0:02:45]} Qd6 {[%emt 0:00:39]} 39. Rcf1 {[%emt 0:00:27]} Rc7 {[%emt 0:00:28]} 40. Qb3 {[%emt 0:01:08]} Qe5 {[%emt 0:00:32]} 41. Qb6 {[%emt 0:00:57]} Rc6 {[%emt 0:00:20]} 42. Qb3 {[%emt 0:00:34]} Qc5 {[%emt 0:00:37]} 43. Kh1 {[%emt 0:00:48]} Rb6 {[%emt 0:00:10]} 44. Qd3 {[%emt 0:00:40]} Qc6+ {[%emt 0:00:21]} 45. Kg1 {[%emt 0:00:13]} Qc5 {[%emt 0:00:05]} 46. Kh1 {[%emt 0:00:11]} Qe5 {[%emt 0:00:12]} 47. Re2 {[%emt 0:00:35]} Qc7 {[%emt 0:00:38]} 48. Qd4 {[%emt 0:00:59]} Rd6 {[%emt 0:00:11]} 49. Qb4 {[%emt 0:01:18]} Rc6 {[%emt 0:00:26]} 50. Qf4 {[%emt 0:01:01]} Qd7 {[%emt 0:00:37]} 51. Rd2 {[%emt 0:00:29]} Qc8 {[%emt 0:00:27]} 52. Rdf2 {[%emt 0:00:36]} Re6 {[%emt 0:00:14]} 53. Rc1 {[%emt 0:00:39]} Rc6 {[%emt 0:00:19]} 54. Rxc6 {[%emt 0:00:53]} Qxc6+ {[%emt 0:00:04]} 55. Qf3 {[%emt 0:00:10]} Qb6 {[%emt 0:00:20]} 56. Kg2 {[%emt 0:00:26]} Re7 {[%emt 0:01:08]} 57. Re2 {[%emt 0:00:35]} Kf7 {[%emt 0:01:12]} 58. Qd5+ {[%emt 0:00:39]} Kf8 {[%emt 0:00:48]} 59. Qd2 {[%emt 0:00:35]} Rxe2+ {[%emt 0:01:13]} 60. Qxe2 {[%emt 0:00:04]} Kf7 {[%emt 0:00:33]} 61. Qd2 {[%emt 0:00:32]} Qc6+ {[%emt 0:00:11]} 62. Kg1 {[%emt 0:00:24]} Qb6+ {[%emt 0:00:25]} 63. Kg2 {[%emt 0:00:08]} Qc6+ {[%emt 0:00:18]} 64. Kg1 {[%emt 0:00:04]} Qb6+ {[%emt 0:00:13]} 65. Kg2 {[%emt 0:00:05]} Ke6 {[%emt 0:01:29]} 66. Kh1 {[%emt 0:02:15]} g5 {[%emt 0:00:29]} 67. Kg2 {[%emt 0:00:16]} Qc6+ {[%emt 0:00:21]} 68. Kg1 {[%emt 0:00:10]} Qc5+ {[%emt 0:00:20]} 69. Kg2 {[%emt 0:00:07]} Qe5 {[%emt 0:00:46]} 70. Kf2 {[%emt 0:00:28]} g4 {[%emt 0:00:32]} 71. Qb4 {[%emt 0:01:30]} Qf5+ {[%emt 0:00:31]} 72. Kg2 {[%emt 0:00:25]} Qf3+ {[%emt 0:00:31]} 73. Kg1 {[%emt 0:00:11]} f5 {[%emt 0:00:30]} 74. Qb6+ {[%emt 0:00:29]} Ke5 {[%emt 0:00:14]} 75. Qb5+ {[%emt 0:00:27]} Ke4 {[%emt 0:00:36]} 76. Qxb7+ {[%emt 0:00:09]} Kd4 {[%emt 0:00:35]} 77. Qxf3 {[%emt 0:00:11]} gxf3 {[%emt 0:00:04]} 78. Kf2 {[%emt 0:00:10]} Ke4 {[%emt 0:00:04]} 79. b4 {[%emt 0:00:04]} Kd5 {[%emt 0:00:04]} 80. h4 {[%emt 0:00:05]} 1-0

[Event "EYCC G10-ch 2024"]
[Site "Prague"]
[Date "2024.08.29"]
[Round "7.10"]
[White "Jaksa, Ema"]
[Black "Trzcinska, Weronika"]
[Result "1-0"]
[ECO "C50"]
[WhiteElo "1551"]
[BlackElo "1490"]
[Annotator "NA RC"]
[PlyCount "133"]
[EventDate "2024.08.19"]
[EventType "swiss"]
[EventCountry "CZE"]
[SourceTitle "playchess.com"]
[Source "ChessBase"]
[SourceQuality "1"]
[TimeControl "5400+30"]

1. e4 {[%emt 0:00:16]} e5 {[%emt 0:00:13]} 2. Nf3 {[%emt 0:00:31]} Nc6 {[%emt 0:00:56]} 3. Bc4 {[%emt 0:01:58]} Be7 {[%emt 0:01:56]} 4. O-O {[%emt 0:03:55]} Nf6 {[%emt 0:01:48]} 5. d3 {[%emt 0:01:50]} d6 {[%emt 0:00:26]} 6. c3 {[%emt 0:02:15]} O-O {[%emt 0:02:28]} 7. Nbd2 {[%emt 0:02:32]} Bg4 {[%emt 0:05:38]} 8. Re1 {[%emt 0:02:17]} Na5 {[%emt 0:03:54]} 9. Bb5 {[%emt 0:02:20]} a6 {[%emt 0:01:10]} 10. Ba4 {[%emt 0:00:48]} b5 {[%emt 0:00:46]} 11. Bc2 {[%emt 0:01:57]} c5 {[%emt 0:04:56]} 12. Nf1 {[%emt 0:02:38]} h6 {[%emt 0:01:49]} 13. h3 Bxf3 {[%emt 0:04:05]} 14. Qxf3 {[%emt 0:04:14]} Nh7 {[%emt 0:01:46]} 15. Ng3 {[%emt 0:04:35]} Bg5 {[%emt 0:02:54]} 16. Nf5 {[%emt 0:03:49]} Bxc1 {[%emt 0:02:06]} 17. Raxc1 {[%emt 0:01:34]} Qf6 {[%emt 0:02:17]} 18. Qg4 {[%emt 0:02:33]} Nc6 {[%emt 0:03:49]} 19. f4 {[%emt 0:04:04]} Ne7 {[%emt 0:04:58]} 20. fxe5 {[%emt 0:04:21]} dxe5 {[%emt 0:01:08]} 21. Rf1 {[%emt 0:01:10]} Nxf5 {[%emt 0:04:15]} 22. Rxf5 {[%emt 0:01:54]} Qe7 {[%emt 0:01:38]} 23. Rcf1 {[%emt 0:01:40]} f6 {[%emt 0:01:15]} 24. h4 {[%emt 0:04:15]} Kh8 {[%emt 0:01:10]} 25. Qg6 {[%emt 0:02:54]} Qf7 {[%emt 0:04:40]} 26. Qxf7 {[%emt 0:01:36]} Rxf7 {[%emt 0:01:29]} 27. g4 {[%emt 0:00:33]} Rd7 {[%emt 0:01:19]} 28. Rd1 {[%emt 0:02:11]} Rad8 {[%emt 0:00:37]} 29. Rff1 {[%emt 0:01:46]} Nf8 {[%emt 0:01:45]} 30. g5 {[%emt 0:02:51]} Rd6 {[%emt 0:03:46]} 31. gxh6 {[%emt 0:03:47]} gxh6 {[%emt 0:01:22]} 32. h5 {[%emt 0:05:25]} Kg7 {[%emt 0:02:02]} 33. Rf3 {[%emt 0:00:40]} Ne6 {[%emt 0:02:31]} 34. Rg3+ {[%emt 0:01:14]} Kh7 {[%emt 0:00:48]} 35. Rg4 {[%emt 0:06:18]} Nf4 {[%emt 0:00:48]} 36. d4 {[%emt 0:01:19]} cxd4 {[%emt 0:00:15]} 37. Rxf4 {[%emt 0:02:46]} d3 {[%emt 0:01:35]} 38. Rxd3 {[%emt 0:09:34]} Rxd3 {[%emt 0:00:37]} 39. Rxf6 {[%emt 0:00:29]} Rd2 {[%emt 0:00:36]} 40. Bb3 {[%emt 0:00:18]} R2d6 {[%emt 0:02:33]} 41. Rf7+ {[%emt 0:00:40]} Kh8 {[%emt 0:00:48]} 42. Rf5 {[%emt 0:00:40]} Re8 {[%emt 0:00:27]} 43. Bd5 {[%emt 0:00:32]} Re7 {[%emt 0:01:25]} 44. Rf8+ {[%emt 0:00:26]} Kg7 {[%emt 0:00:36]} 45. Rg8+ {[%emt 0:00:16]} Kh7 {[%emt 0:00:18]} 46. Rf8 {[%emt 0:00:09]} Rg7+ {[%emt 0:00:46]} 47. Kf2 {[%emt 0:00:25]} a5 {[%emt 0:01:47]} 48. Re8 {[%emt 0:00:57]} Rf6+ {[%emt 0:01:27]} 49. Ke3 {[%emt 0:00:24]} Rg3+ {[%emt 0:00:51]} 50. Ke2 {[%emt 0:00:21]} Rg5 {[%emt 0:05:12]} 51. Re7+ {[%emt 0:02:00]} Kh8 {[%emt 0:02:15]} 52. Rb7 {[%emt 0:01:11]} Rg2+ {[%emt 0:01:20]} 53. Ke3 {[%emt 0:00:21]} Rxb2 {[%emt 0:01:56]} 54. Re7 {[%emt 0:00:26]} Rc2 {[%emt 0:04:05]} 55. Rxe5 {[%emt 0:00:36]} Rxc3+ {[%emt 0:01:25]} 56. Kd4 {[%emt 0:00:25]} Rff3 {[%emt 0:00:25]} 57. Re8+ {[%emt 0:00:20]} Kg7 {[%emt 0:00:38]} 58. Rg8+ {[%emt 0:00:39]} Kh7 {[%emt 0:00:55]} 59. Rb8 {[%emt 0:01:39]} Rfd3+ {[%emt 0:01:34]} 60. Ke5 {[%emt 0:00:16]} Rc5 {[%emt 0:00:42]} 61. Rd8 {[%emt 0:01:42]} Kg7 {[%emt 0:00:57]} 62. Rd7+ {[%emt 0:00:25]} Kh8 {[%emt 0:02:39]} 63. Kf6 {[%emt 0:00:17]} Rg3 {[%emt 0:00:50]} 64. e5 {[%emt 0:00:54]} Rc8 {[%emt 0:01:31]} 65. e6 {[%emt 0:00:57]} Rf8+ {[%emt 0:02:53]} 66. Ke7 {[%emt 0:00:29]} Rgg8 {[%emt 0:00:29]} 67. Kd6 {[%emt 0:00:27]} 1-0

[Event "EYCC G10-ch 2024"]
[Site "Prague"]
[Date "2024.08.29"]
[Round "7.11"]
[White "Goralik, Zuzanna"]
[Black "Rekhviashvili, Mariam"]
[Result "0-1"]
[ECO "D35"]
[WhiteElo "1459"]
[BlackElo "1542"]
[Annotator "NA RC"]
[PlyCount "130"]
[EventDate "2024.08.19"]
[EventType "swiss"]
[EventCountry "CZE"]
[SourceTitle "playchess.com"]
[Source "ChessBase"]
[SourceQuality "1"]
[TimeControl "5400+30"]

1. d4 {[%emt 0:00:06]} d5 {[%emt 0:00:22]} 2. c4 {[%emt 0:00:10]} e6 {[%emt 0:00:03]} 3. Nc3 {[%emt 0:00:59]} Nf6 {[%emt 0:00:11]} 4. cxd5 {[%emt 0:01:04]} exd5 {[%emt 0:00:05]} 5. Bg5 {[%emt 0:00:42]} Be7 {[%emt 0:00:11]} 6. e3 {[%emt 0:00:43]} h6 {[%emt 0:00:20]} 7. Bh4 {[%emt 0:00:41]} O-O {[%emt 0:00:08]} 8. Bd3 {[%emt 0:01:02]} c6 {[%emt 0:00:31]} 9. Qc2 {[%emt 0:01:31]} Nbd7 {[%emt 0:00:18]} 10. Nge2 {[%emt 0:01:22]} Re8 {[%emt 0:00:09]} 11. O-O {[%emt 0:01:40]} Ne4 {[%emt 0:00:14]} 12. Bxe7 {[%emt 0:01:18]} Qxe7 {[%emt 0:00:05]} 13. Bxe4 {[%emt 0:01:03]} dxe4 {[%emt 0:00:05]} 14. Rfd1 {[%emt 0:02:46]} Nf6 {[%emt 0:00:57]} 15. d5 {[%emt 0:01:20]} Qd6 {[%emt 0:04:05]} 16. dxc6 {[%emt 0:03:29]} Qxc6 {[%emt 0:00:09]} 17. Nd4 {[%emt 0:01:56]} Qc5 {[%emt 0:04:38]} 18. Rd2 {[%emt 0:04:42]} Bd7 {[%emt 0:03:37]} 19. Rad1 {[%emt 0:02:23]} Rac8 {[%emt 0:02:37]} 20. Nb3 {[%emt 0:06:03]} Qc7 {[%emt 0:01:11]} 21. h3 {[%emt 0:01:33]} Bb5 {[%emt 0:11:59]} 22. Nc1 {[%emt 0:06:07]} Ba6 {[%emt 0:11:45]} 23. Rd6 {[%emt 0:05:32]} Bd3 {[%emt 0:06:56]} 24. R6xd3 {[%emt 0:08:31]} exd3 {[%emt 0:00:07]} 25. Nxd3 {[%emt 0:00:53]} Ne4 {[%emt 0:01:09]} 26. Rc1 {[%emt 0:03:07]} Nxc3 {[%emt 0:00:07]} 27. bxc3 {[%emt 0:03:06]} Red8 {[%emt 0:02:17]} 28. Nf4 {[%emt 0:05:35]} Qd6 {[%emt 0:04:48]} 29. Rb1 {[%emt 0:08:14]} b6 {[%emt 0:00:29]} 30. Qb3 {[%emt 0:01:22]} Qe5 {[%emt 0:04:49]} 31. Rc1 {[%emt 0:03:16]} g5 {[%emt 0:02:30]} 32. Ne2 {[%emt 0:02:12]} Qd5 {[%emt 0:00:46]} 33. Qa3 {[%emt 0:04:03]} a5 {[%emt 0:01:33]} 34. Nd4 {[%emt 0:01:27]} Rc4 {[%emt 0:03:25]} 35. Rb1 {[%emt 0:03:47]} Qc5 {[%emt 0:00:47]} 36. Qxc5 {[%emt 0:03:06]} Rxc5 {[%emt 0:03:23]} 37. Rxb6 {[%emt 0:00:39]} Rxc3 {[%emt 0:00:40]} 38. Rxh6 {[%emt 0:01:52]} Ra3 {[%emt 0:02:37]} 39. Ra6 {[%emt 0:02:08]} Rxa2 {[%emt 0:00:21]} 40. Nc6 {[%emt 0:00:58]} Rd1+ {[%emt 0:00:44]} 41. Kh2 {[%emt 0:00:18]} a4 {[%emt 0:00:46]} 42. Nb4 {[%emt 0:01:48]} Raa1 {[%emt 0:01:04]} 43. Ra5 {[%emt 0:01:10]} f6 {[%emt 0:00:19]} 44. Nc2 {[%emt 0:01:14]} Ra2 {[%emt 0:01:34]} 45. Nb4 {[%emt 0:00:20]} Rxf2 {[%emt 0:00:43]} 46. Rxa4 {[%emt 0:00:16]} Rdd2 {[%emt 0:00:07]} 47. Ra8+ {[%emt 0:00:40]} Kg7 {[%emt 0:00:07]} 48. Ra7+ {[%emt 0:00:07]} Kg6 {[%emt 0:00:06]} 49. Ra1 {[%emt 0:01:32]} Rxg2+ {[%emt 0:00:07]} 50. Kh1 {[%emt 0:00:08]} Rh2+ {[%emt 0:00:06]} 51. Kg1 {[%emt 0:00:06]} Rdg2+ {[%emt 0:01:16]} 52. Kf1 {[%emt 0:00:15]} Rb2 {[%emt 0:00:58]} 53. Kg1 {[%emt 0:00:34]} Rxh3 {[%emt 0:00:09]} 54. Nd3 {[%emt 0:00:27]} Rd2 {[%emt 0:00:20]} 55. Nf2 {[%emt 0:00:33]} Rxe3 {[%emt 0:00:08]} 56. Nh1 {[%emt 0:00:46]} Ree2 {[%emt 0:01:50]} 57. Rb1 {[%emt 0:01:32]} Rg2+ {[%emt 0:00:21]} 58. Kf1 {[%emt 0:00:04]} Rh2 {[%emt 0:00:19]} 59. Ng3 {[%emt 0:00:23]} Rdg2 {[%emt 0:00:50]} 60. Ne4 {[%emt 0:00:35]} Rg4 {[%emt 0:00:42]} 61. Nf2 {[%emt 0:01:20]} Rf4 {[%emt 0:00:43]} 62. Rd1 {[%emt 0:01:00]} Rfxf2+ {[%emt 0:00:35]} 63. Kg1 {[%emt 0:00:17]} Rfg2+ {[%emt 0:00:05]} 64. Kf1 {[%emt 0:00:06]} Rh1+ {[%emt 0:01:09]} 65. Kxg2 {[%emt 0:00:11]} Rxd1 {[%emt 0:00:06]} 0-1

[Event "EYCC G10-ch 2024"]
[Site "Prague"]
[Date "2024.08.29"]
[Round "7.12"]
[White "Wang, Yi Xuan"]
[Black "Karabas, Beren Nisa"]
[Result "1/2-1/2"]
[ECO "D85"]
[WhiteElo "1734"]
[BlackElo "1494"]
[Annotator "NA RC"]
[PlyCount "104"]
[EventDate "2024.08.19"]
[EventType "swiss"]
[EventCountry "CZE"]
[SourceTitle "playchess.com"]
[Source "ChessBase"]
[SourceQuality "1"]
[TimeControl "5400+30"]

1. d4 {[%emt 0:00:03]} Nf6 {[%emt 0:00:07]} 2. c4 {[%emt 0:00:05]} g6 {[%emt 0:00:06]} 3. Nc3 {[%emt 0:00:04]} d5 {[%emt 0:00:05]} 4. cxd5 {[%emt 0:00:38]} Nxd5 {[%emt 0:00:12]} 5. e4 {[%emt 0:00:20]} Nxc3 {[%emt 0:00:08]} 6. bxc3 {[%emt 0:00:08]} Bg7 {[%emt 0:00:10]} 7. Nf3 {[%emt 0:00:55]} O-O {[%emt 0:00:49]} 8. Bc4 {[%emt 0:00:48]} Bg4 {[%emt 0:01:31]} 9. O-O {[%emt 0:00:17]} c5 {[%emt 0:00:26]} 10. Bb2 {[%emt 0:04:51]} Nc6 {[%emt 0:02:03]} 11. d5 {[%emt 0:01:44]} Ne5 {[%emt 0:01:34]} 12. Be2 {[%emt 0:00:12]} Qc7 {[%emt 0:01:34]} 13. Nxe5 {[%emt 0:02:07]} Bxe2 {[%emt 0:00:08]} 14. Qxe2 {[%emt 0:00:18]} Bxe5 {[%emt 0:00:17]} 15. h3 {[%emt 0:00:19]} Rfd8 {[%emt 0:03:24]} 16. c4 {[%emt 0:01:28]} a6 {[%emt 0:04:12]} 17. a4 {[%emt 0:01:25]} Rab8 {[%emt 0:01:34]} 18. Bxe5 {[%emt 0:01:43]} Qxe5 {[%emt 0:00:07]} 19. f4 {[%emt 0:01:14]} Qg7 {[%emt 0:05:57]} 20. Rab1 {[%emt 0:00:48]} b6 {[%emt 0:03:03]} 21. f5 {[%emt 0:01:02]} Qe5 {[%emt 0:00:43]} 22. fxg6 {[%emt 0:04:19]} hxg6 {[%emt 0:00:39]} 23. Qf3 {[%emt 0:03:39]} Rf8 {[%emt 0:07:41]} 24. Kh1 {[%emt 0:03:27]} Kg7 {[%emt 0:01:00]} 25. Qg4 {[%emt 0:04:46]} Rh8 {[%emt 0:07:54]} 26. Rf3 {[%emt 0:04:52]} f6 {[%emt 0:10:19]} 27. Rfb3 {[%emt 0:03:17]} Qd6 {[%emt 0:02:16]} 28. Qe6 {[%emt 0:01:42]} Rhd8 {[%emt 0:02:24]} 29. Qxd6 {[%emt 0:00:31]} Rxd6 {[%emt 0:00:40]} 30. a5 {[%emt 0:00:07]} b5 {[%emt 0:05:45]} 31. cxb5 {[%emt 0:00:52]} c4 {[%emt 0:00:44]} 32. Rb4 {[%emt 0:00:58]} axb5 {[%emt 0:00:29]} 33. Rxb5 {[%emt 0:07:02]} Rxb5 {[%emt 0:00:16]} 34. Rxb5 {[%emt 0:00:11]} Ra6 {[%emt 0:00:48]} 35. Rc5 {[%emt 0:00:39]} c3 {[%emt 0:01:49]} 36. Kh2 {[%emt 0:00:25]} Kf7 {[%emt 0:00:49]} 37. h4 {[%emt 0:02:47]} c2 {[%emt 0:02:00]} 38. Rxc2 {[%emt 0:00:17]} Rxa5 {[%emt 0:00:04]} 39. Kh3 {[%emt 0:02:06]} Ra3+ {[%emt 0:06:41]} 40. g3 {[%emt 0:00:47]} Re3 {[%emt 0:01:39]} 41. Rc4 {[%emt 0:00:22]} Re1 {[%emt 0:03:08]} 42. Rd4 {[%emt 0:03:24]} Re2 {[%emt 0:01:15]} 43. Kg4 {[%emt 0:03:09]} Re3 {[%emt 0:00:50]} 44. Kf4 {[%emt 0:00:59]} Re1 {[%emt 0:00:44]} 45. Rd3 {[%emt 0:00:44]} Rf1+ {[%emt 0:03:08]} 46. Rf3 {[%emt 0:01:59]} Re1 {[%emt 0:02:38]} 47. g4 {[%emt 0:00:49]} Rh1 {[%emt 0:00:22]} 48. Rd3 {[%emt 0:09:11]} Rxh4 {[%emt 0:01:17]} 49. d6 {[%emt 0:01:14]} g5+ {[%emt 0:00:36]} 50. Kg3 {[%emt 0:00:44]} exd6 {[%emt 0:00:15]} 51. Rxd6 {[%emt 0:00:12]} Rh1 {[%emt 0:01:02]} 52. Kf2 {[%emt 0:00:30]} Rh4 {[%emt 0:00:12]} 1/2-1/2